fUST/lending_fUST_20250118
["ID","MTS","AMOUNT","RATE_DAILY","PERIOD"]
[349395215,1737154255693,-16131.38,0.00022465,3]
[349395216,1737154255704,-500.0,0.00022465,3]
[349395217,1737154255714,-589.79,0.00022465,3]
[349395218,1737154255724,-823.29,0.00022465,3]
[349395219,1737154255733,-2672.99,0.00022465,3]
[349395220,1737154255744,-500.0,0.00022465,3]
[349395221,1737154255753,-500.0,0.00022465,3]
[349395222,1737154255763,-500.0,0.00022465,3]
[349395223,1737154255772,-500.0,0.00022465,3]
[349395224,1737154255782,-500.0,0.00022465,3]
[349395225,1737154255791,-500.0,0.00022465,3]
[349395226,1737154255801,-500.0,0.00022465,3]
[349395227,1737154255810,-500.0,0.00022465,3]
[349395228,1737154255819,-500.0,0.00022465,3]
[349395229,1737154255829,-345.956,0.0002257,2]
[349395230,1737154255841,-500.0,0.00022602,3]
[349395231,1737154255851,-544.45,0.00022602,3]
[349395232,1737154255860,-500.0,0.00022602,3]
[349395233,1737154255870,-500.0,0.00022602,3]
[349395234,1737154255880,-500.0,0.00022602,3]
[349395235,1737154255890,-500.0,0.00022602,3]
[349395236,1737154255899,-500.0,0.00022602,3]
[349395237,1737154255910,-500.0,0.00022602,3]
[349395238,1737154255920,-500.0,0.00022602,3]
[349395239,1737154255929,-500.0,0.00022602,3]
[349395240,1737154255939,-500.0,0.00022602,3]
[349395241,1737154255949,-1124.03,0.00022602,3]
[349395242,1737154255959,-500.0,0.00022602,3]
[349395243,1737154255970,-851.43,0.00022602,3]
[349395244,1737154255980,-2235.42,0.00022602,3]
[349395245,1737154255990,-462.83259762,0.00022602,3]
[349395246,1737154255999,-1887.0,0.00022602,3]
[349395247,1737154256009,-491.8,0.00022602,3]
[349395248,1737154256019,-500.0,0.00022602,3]
[349395249,1737154256028,-500.0,0.00022602,3]
[349395250,1737154256039,-694.73,0.00022602,3]
[349395251,1737154256049,-500.0,0.00022602,3]
[349395252,1737154256059,-500.0,0.00022602,3]
[349395253,1737154256068,-770.35,0.00022602,3]
[349395254,1737154256078,-1636.32,0.00022602,3]
[349395255,1737154256088,-648.96,0.00022602,3]
[349395256,1737154256097,-500.0,0.00022602,3]
[349395257,1737154256107,-500.0,0.00022602,3]
[349395258,1737154256117,-723.49,0.00022602,3]
[349395259,1737154256127,-780.03,0.00022602,3]
[349395260,1737154256136,-500.0,0.00022602,3]
[349395261,1737154256148,-630.94,0.00022602,3]
[349395262,1737154256157,-887.91,0.00022602,3]
[349395263,1737154256167,-500.0,0.00022602,3]
[349395264,1737154256177,-16131.38,0.00022602,3]
[349395265,1737154256187,-500.0,0.00022602,3]
[349395266,1737154256198,-589.79,0.00022602,3]
[349395267,1737154256209,-823.29,0.00022602,3]
[349395268,1737154256219,-2672.99,0.00022602,3]
[349395269,1737154256228,-500.0,0.00022602,3]
[349395270,1737154256238,-500.0,0.00022602,3]
[349395271,1737154256248,-500.0,0.00022602,3]
[349395272,1737154256258,-500.0,0.00022602,3]
[349395273,1737154256267,-500.0,0.00022602,3]
[349395274,1737154256276,-500.0,0.00022602,3]
[349395275,1737154256286,-395.0,0.00022719,2]
[349395276,1737154256295,-155.93456023,0.00022739,3]
[349395277,1737154256305,-500.0,0.00022739,3]
[349395278,1737154256315,-500.0,0.00022739,3]
[349395279,1737154256324,-500.0,0.00022739,3]
[349395280,1737154256334,-500.0,0.00022739,3]
[349395281,1737154256343,-500.0,0.00022739,3]
[349395282,1737154256352,-500.0,0.00022739,3]
[349395283,1737154256362,-500.0,0.00022739,3]
[349395284,1737154256371,-223.77,0.00022739,3]
[349395285,1737154256380,-1124.03,0.00022739,3]
[349395286,1737154256390,-500.0,0.00022739,3]
[349395287,1737154256399,-851.43,0.00022739,3]
[349395288,1737154256409,-2235.42,0.00022739,3]
[349395289,1737154256418,-1887.0,0.00022739,3]
[349395290,1737154256428,-500.0,0.00022739,3]
[349395291,1737154256438,-647.6,0.00022739,3]
[349395292,1737154256447,-694.73,0.00022739,3]
[349395293,1737154256457,-500.0,0.00022739,3]
[349395294,1737154256467,-500.0,0.00022739,3]
[349395295,1737154256477,-770.35,0.00022739,3]
[349395296,1737154256486,-1636.32,0.00022739,3]
[349395297,1737154256496,-648.96,0.00022739,3]
[349395298,1737154256506,-211.73,0.00022739,3]
[349395299,1737154256516,-500.0,0.00022739,3]
[349395300,1737154256525,-723.49,0.00022739,3]
[349395301,1737154256535,-780.03,0.00022739,3]
[349395302,1737154256545,-500.0,0.00022739,3]
[349395303,1737154256554,-887.91,0.00022739,3]
[349395304,1737154256564,-500.0,0.00022739,3]
[349395305,1737154256574,-16131.38,0.00022739,3]
[349395306,1737154256583,-500.0,0.00022739,3]
[349395307,1737154256592,-589.79,0.00022739,3]
[349395308,1737154256600,-823.29,0.00022739,3]
[349395309,1737154256610,-2672.99,0.00022739,3]
[349395310,1737154256619,-500.0,0.00022739,3]
[349395311,1737154256629,-500.0,0.00022739,3]
[349395312,1737154256638,-500.0,0.00022739,3]
[349395313,1737154256647,-500.0,0.00022739,3]
[349395314,1737154256656,-500.0,0.00022739,3]
[349395315,1737154256666,-359.06702747,0.00022739,3]
[349395316,1737154256676,-500.0,0.00022754,2]
[349395317,1737154256685,-261.49805958,0.00022761,2]
[349395318,1737154256695,-9461.08304211,0.00022827,2]
[349395319,1737154256704,-500.0,0.00022876,3]
[349395320,1737154256716,-500.0,0.00022876,3]
[349395321,1737154256725,-500.0,0.00022876,3]
[349395322,1737154256734,-500.0,0.00022876,3]
[349395323,1737154256744,-500.0,0.00022876,3]
[349395324,1737154256753,-500.0,0.00022876,3]
[349395325,1737154256762,-500.0,0.00022876,3]
[349395326,1737154256771,-1124.03,0.00022876,3]
[349395327,1737154256780,-500.0,0.00022876,3]
[349395328,1737154256789,-851.43,0.00022876,3]
[349395329,1737154256799,-2235.42,0.00022876,3]
[349395330,1737154256808,-1887.0,0.00022876,3]
[349395331,1737154256817,-500.0,0.00022876,3]
[349395332,1737154256826,-694.73,0.00022876,3]
[349395333,1737154256837,-500.0,0.00022876,3]
[349395334,1737154256848,-500.0,0.00022876,3]
[349395335,1737154256857,-770.35,0.00022876,3]
[349395336,1737154256867,-1636.32,0.00022876,3]
[349395337,1737154256877,-648.96,0.00022876,3]
[349395338,1737154256887,-500.0,0.00022876,3]
[349395339,1737154256896,-723.49,0.00022876,3]
[349395340,1737154256905,-780.03,0.00022876,3]
[349395341,1737154256917,-500.0,0.00022876,3]
[349395342,1737154256926,-887.91,0.00022876,3]
[349395343,1737154256935,-500.0,0.00022876,3]
[349395344,1737154256944,-16131.38,0.00022876,3]
[349395345,1737154256953,-500.0,0.00022876,3]
[349395346,1737154256963,-589.79,0.00022876,3]
[349395347,1737154256972,-823.29,0.00022876,3]
[349395348,1737154256981,-2672.99,0.00022876,3]
[349395349,1737154257019,-500.0,0.00022876,3]
[349395350,1737154257029,-500.0,0.00022876,3]
[349395351,1737154257040,-500.0,0.00022876,3]
[349395352,1737154257050,-500.0,0.00022876,3]
[349395353,1737154257059,-157.23,0.00022876,3]
[349395354,1737154257069,-153.0,0.00022932,2]
[349395355,1737154257078,-7438.69753278,0.00023,2]
[349395356,1737154257088,-7438.69753278,0.00023,3]
[349395357,1737154257097,-500.0,0.00023013,3]
[349395358,1737154257106,-182.23,0.00023013,3]
[349395359,1737154257116,-500.0,0.00023013,3]
[349395360,1737154257125,-500.0,0.00023013,3]
[349395361,1737154257135,-500.0,0.00023013,3]
[349395362,1737154257143,-500.0,0.00023013,3]
[349395363,1737154257152,-500.0,0.00023013,3]
[349395364,1737154257161,-1124.03,0.00023013,3]
[349395365,1737154257170,-500.0,0.00023013,3]
[349395366,1737154257180,-851.43,0.00023013,3]
[349395367,1737154257189,-2235.42,0.00023013,3]
[349395368,1737154257198,-1887.0,0.00023013,3]
[349395369,1737154257209,-500.0,0.00023013,3]
[349395370,1737154257219,-694.73,0.00023013,3]
[349395371,1737154257228,-500.0,0.00023013,3]
[349395372,1737154257238,-500.0,0.00023013,3]
[349395373,1737154257247,-770.35,0.00023013,3]
[349395374,1737154257257,-1636.32,0.00023013,3]
[349395375,1737154257267,-648.96,0.00023013,3]
[349395376,1737154257277,-501.91,0.00023013,3]
[349395377,1737154257287,-723.49,0.00023013,3]
[349395378,1737154257297,-780.03,0.00023013,3]
[349395379,1737154257306,-524.68,0.00023013,3]
[349395380,1737154257315,-887.91,0.00023013,3]
[349395381,1737154257324,-500.0,0.00023013,3]
[349395382,1737154257333,-10466.50106901,0.00023013,3]
[349395383,1737154257456,-1084.41099492,0.00023013,3]
[349395384,1737154257469,-626.48507443,0.00023013,3]
[349395385,1737154257480,-3953.98286164,0.00023013,3]
[349395386,1737154257493,-500.0,0.00023013,3]
[349395387,1737154257502,-589.79,0.00023013,3]
[349395388,1737154257512,-823.29,0.00023013,3]
[349395389,1737154257521,-2672.99,0.00023013,3]
[349395390,1737154257531,-296.39750236,0.00023013,3]
[349395391,1737154257543,-203.60249764,0.00023013,3]
[349395392,1737154257552,-340.54,0.00023013,3]
[349395393,1737154257562,-500.0,0.00023013,3]
[349395394,1737154257572,-500.0,0.00023013,3]
[349395395,1737154257583,-261.49805958,0.0002306,2]
[349395396,1737154257593,-300.0,0.000231,10]
[349395397,1737154257603,-500.0,0.0002315,3]
[349395398,1737154257613,-500.0,0.0002315,3]
[349395399,1737154257622,-178.26708611,0.0002315,3]
[349395400,1737154257631,-500.0,0.0002315,3]
[349395401,1737154257640,-500.0,0.0002315,3]
[349395402,1737154257649,-500.0,0.0002315,3]
[349395403,1737154257658,-1124.03,0.0002315,3]
[349395404,1737154257667,-500.0,0.0002315,3]
[349395405,1737154257677,-851.43,0.0002315,3]
[349395406,1737154257686,-2235.42,0.0002315,3]
[349395407,1737154257695,-1887.0,0.0002315,3]
[349395408,1737154257704,-500.0,0.0002315,3]
[349395409,1737154257715,-694.73,0.0002315,3]
[349395410,1737154257724,-500.0,0.0002315,3]
[349395411,1737154257734,-500.0,0.0002315,3]
[349395412,1737154257743,-770.35,0.0002315,3]
[349395413,1737154257753,-1636.32,0.0002315,3]
[349395414,1737154257763,-648.96,0.0002315,3]
[349395415,1737154257773,-723.49,0.0002315,3]
[349395416,1737154257783,-780.03,0.0002315,3]
[349395417,1737154257792,-887.91,0.0002315,3]
[349395418,1737154257801,-500.0,0.0002315,3]
[349395419,1737154257810,-9620.69695107,0.0002315,3]
[349395422,1737154466257,162.343736,0.00013973,2]
[349395423,1737154523810,278.183,0.00025,120]
[349395424,1737154532021,10000.0,0.0002,2]
[349395446,1737155024807,166.418086,0.0002411,120]
[349395447,1737155030192,818.25794562,0.00025,120]
[349395448,1737155153521,385.12201117,0.00025,120]
[349395449,1737155202072,9282.94914245,0.0002,2]
[349395517,1737155437947,-1514.7032186,0.00020951,2]
[349395519,1737155437957,-1257.4677711,0.00020985,11]
[349395521,1737155437967,-702.0,0.00021607,2]
[349395523,1737155437976,-783.35662132,0.00021817,2]
[349395525,1737155437986,-363.78410391,0.00021817,2]
[349395527,1737155437995,-469.92292491,0.000219,3]
[349395529,1737155438004,-151.214,0.00021916,2]
[349395531,1737155438014,-292.211798,0.00021916,2]
[349395533,1737155438024,-300.0,0.00021916,2]
[349395536,1737155438033,-503.56910285,0.00021917,3]
[349395538,1737155438042,-500.0,0.00021917,3]
[349395539,1737155438052,-500.0,0.00021917,2]
[349395542,1737155438061,-500.0,0.00021917,3]
[349395544,1737155438071,-493.90380827,0.00021917,3]
[349395546,1737155438080,-542.46709313,0.00021917,3]
[349395548,1737155438090,-198.25231518,0.00021917,3]
[349395550,1737155438099,-500.0,0.00021917,3]
[349395552,1737155438108,-500.0,0.00021917,3]
[349395554,1737155438117,-500.0,0.00021917,3]
[349395556,1737155438127,-526.2,0.00021917,3]
[349395557,1737155438135,-595.77660279,0.00021917,3]
[349395559,1737155438145,-501.55696237,0.00021917,3]
[349395561,1737155438154,-500.0,0.00021917,3]
[349395564,1737155438163,-500.0,0.00021917,3]
[349395565,1737155438172,-500.0,0.00021917,3]
[349395566,1737155438186,-500.0,0.00021917,3]
[349395567,1737155438195,-500.0,0.00021917,3]
[349395568,1737155438204,-500.0,0.00021917,3]
[349395569,1737155438213,-371.93588244,0.00021917,2]
[349395570,1737155438230,-254.53411756,0.00021917,2]
[349395571,1737155438239,-500.0,0.00021917,3]
[349395572,1737155438248,-500.0,0.00021917,3]
[349395573,1737155438258,-612.04,0.00021917,3]
[349395574,1737155438267,-500.0,0.00021917,3]
[349395576,1737155438275,-343.17715446,0.00021917,3]
[349395577,1737155438284,-452.20099646,0.00021917,3]
[349395579,1737155438293,-500.0,0.00021917,3]
[349395581,1737155438303,-303.32941914,0.00021917,3]
[349395583,1737155438312,-500.0,0.00021917,3]
[349395585,1737155438321,-385.83626585,0.00021917,3]
[349395587,1737155438331,-560.03,0.00021917,3]
[349395589,1737155438340,-500.0,0.00021917,3]
[349395591,1737155438350,-500.0,0.00021917,3]
[349395593,1737155438359,-500.0,0.00021917,3]
[349395595,1737155438368,-500.0,0.00021917,3]
[349395597,1737155438377,-501.63844109,0.00021917,3]
[349395599,1737155438386,-500.0,0.00021917,3]
[349395601,1737155438396,-504.94883029,0.00021917,3]
[349395603,1737155438405,-500.0,0.00021917,3]
[349395605,1737155438414,-553.56901863,0.00021917,3]
[349395607,1737155438426,-500.0,0.00021917,3]
[349395609,1737155438435,-501.67030172,0.00021917,3]
[349395611,1737155438445,-500.0,0.00021917,3]
[349395613,1737155438455,-500.0,0.00021917,3]
[349395615,1737155438464,-500.0,0.00021917,3]
[349395617,1737155438474,-500.0,0.00021917,3]
[349395619,1737155438484,-500.0,0.00021917,3]
[349395621,1737155438493,-503.64616594,0.00021917,3]
[349395623,1737155438502,-505.59568953,0.00021917,3]
[349395625,1737155438512,-503.95833664,0.00021917,3]
[349395627,1737155438522,-500.0,0.00021917,3]
[349395629,1737155438531,-502.81355144,0.00021917,3]
[349395631,1737155438540,-500.0,0.00021917,3]
[349395633,1737155438549,-500.0,0.00021917,3]
[349395635,1737155438559,-500.0,0.00021917,3]
[349395637,1737155438568,-500.0,0.00021917,3]
[349395639,1737155438578,-502.80895085,0.00021917,3]
[349395641,1737155438587,-505.72958214,0.00021917,3]
[349395643,1737155438597,-500.0,0.00021917,3]
[349395645,1737155438606,-500.0,0.00021917,3]
[349395647,1737155438616,-500.0,0.00021917,3]
[349395649,1737155438626,-500.0,0.00021917,3]
[349395651,1737155438635,-635.06306619,0.00021917,3]
[349395653,1737155438646,-507.87495675,0.00021917,3]
[349395655,1737155438655,-500.0,0.00021917,3]
[349395657,1737155438665,-500.0,0.00021917,3]
[349395659,1737155438676,-500.0,0.00021917,3]
[349395661,1737155438685,-500.0,0.00021917,3]
[349395663,1737155438695,-500.0,0.00021917,3]
[349395665,1737155438704,-505.13748076,0.00021917,3]
[349395667,1737155438714,-509.4227951,0.00021917,3]
[349395669,1737155438724,-471.89721045,0.00021917,3]
[349395671,1737155438734,-509.289488,0.00021917,3]
[349395673,1737155438744,-500.0,0.00021917,3]
[349395675,1737155438754,-500.0,0.00021917,3]
[349395677,1737155438763,-193.54,0.00021917,3]
[349395679,1737155438772,-500.0,0.00021917,3]
[349395681,1737155438781,-500.0,0.00021917,3]
[349395683,1737155438789,-500.96754933,0.00021917,3]
[349395685,1737155438799,-500.0,0.00021917,3]
[349395687,1737155438808,-350.57298695,0.00021917,3]
[349395689,1737155438817,-500.0,0.00021917,3]
[349395691,1737155438827,-500.0,0.00021917,3]
[349395693,1737155438836,-500.0,0.00021917,3]
[349395695,1737155438845,-491.05037151,0.00021917,3]
[349395697,1737155438855,-502.1571626,0.00021917,3]
[349395699,1737155438864,-500.0,0.00021917,3]
[349395701,1737155438874,-500.0,0.00021917,3]
[349395703,1737155438883,-500.0,0.00021917,3]
[349395705,1737155438892,-500.0,0.00021917,3]
[349395707,1737155438901,-500.0,0.00021917,3]
[349395709,1737155438910,-500.0,0.00021917,3]
[349395711,1737155438921,-457.46996236,0.00021917,3]
[349395713,1737155438930,-500.0,0.00021917,3]
[349395715,1737155438939,-500.0,0.00021917,3]
[349395717,1737155438948,-500.0,0.00021917,3]
[349395718,1737155438957,-500.0,0.00021917,3]
[349395720,1737155438966,-500.0,0.00021917,3]
[349395721,1737155438974,-500.0,0.00021917,3]
[349395723,1737155438982,-500.0,0.00021917,3]
[349395724,1737155438992,-500.0,0.00021917,3]
[349395726,1737155439001,-355.14124457,0.00021917,3]
[349395727,1737155439011,-505.89063436,0.00021917,3]
[349395729,1737155439021,-500.0,0.00021917,3]
[349395731,1737155439030,-503.58708933,0.00021917,3]
[349395732,1737155439040,-500.0,0.00021917,3]
[349395734,1737155439050,-224.38309725,0.00021917,3]
[349395735,1737155439059,-500.0,0.00021917,3]
[349395737,1737155439069,-500.0,0.00021917,3]
[349395738,1737155439078,-500.0,0.00021917,3]
[349395740,1737155439088,-501.69871628,0.00021917,3]
[349395741,1737155439097,-502.86668108,0.00021917,3]
[349395743,1737155439107,-500.0,0.00021917,3]
[349395744,1737155439117,-502.48733821,0.00021917,3]
[349395746,1737155439126,-585.1688694,0.00021917,3]
[349395747,1737155439136,-500.0,0.00021917,3]
[349395749,1737155439146,-503.45073339,0.00021917,3]
[349395751,1737155439155,-500.0,0.00021917,3]
[349395752,1737155439164,-500.0,0.00021917,3]
[349395754,1737155439176,-500.0,0.00021917,3]
[349395755,1737155439188,-288.334045,0.00021917,3]
[349395757,1737155439197,-502.00261353,0.00021917,3]
[349395758,1737155439206,-585.66056731,0.00021917,3]
[349395760,1737155439216,-506.23673172,0.00021917,3]
[349395762,1737155439226,-503.46472737,0.00021917,3]
[349395763,1737155439236,-500.0,0.00021917,3]
[349395766,1737155439245,-500.0,0.00021917,3]
[349395768,1737155439256,-500.0,0.00021917,3]
[349395770,1737155439265,-500.0,0.00021917,3]
[349395772,1737155439275,-500.0,0.00021917,3]
[349395773,1737155439284,-500.0,0.00021917,3]
[349395775,1737155439294,-500.0,0.00021917,3]
[349395776,1737155439303,-500.0,0.00021917,3]
[349395778,1737155439312,-500.0,0.00021917,3]
[349395780,1737155439322,-500.0,0.00021917,3]
[349395781,1737155439332,-500.0,0.00021917,3]
[349395783,1737155439342,-500.0,0.00021917,3]
[349395785,1737155439351,-500.0,0.00021917,3]
[349395786,1737155439361,-442.1787798,0.00021917,3]
[349395788,1737155439370,-500.0,0.00021917,3]
[349395789,1737155439379,-500.0,0.00021917,3]
[349395791,1737155439389,-500.0,0.00021917,3]
[349395793,1737155439398,-500.0,0.00021917,3]
[349395794,1737155439408,-500.0,0.00021917,3]
[349395796,1737155439417,-500.0,0.00021917,3]
[349395798,1737155439429,-725.54,0.00021917,3]
[349395799,1737155439438,-500.0,0.00021917,3]
[349395801,1737155439449,-500.0,0.00021917,3]
[349395803,1737155439459,-500.0,0.00021917,3]
[349395804,1737155439469,-500.0,0.00021917,3]
[349395806,1737155439479,-500.0,0.00021917,3]
[349395808,1737155439489,-500.0,0.00021917,3]
[349395809,1737155439498,-500.0,0.00021917,3]
[349395811,1737155439508,-500.0,0.00021917,3]
[349395813,1737155439518,-500.0,0.00021917,3]
[349395815,1737155439527,-500.0,0.00021917,3]
[349395818,1737155439536,-500.0,0.00021917,3]
[349395819,1737155439546,-500.66296498,0.00021917,3]
[349395821,1737155439556,-502.9610341,0.00021917,3]
[349395822,1737155439563,-500.0,0.00021917,3]
[349395824,1737155439572,-1520.07,0.00021917,3]
[349395825,1737155439582,-500.0,0.00021917,2]
[349395827,1737155439592,-500.0,0.00021917,3]
[349395828,1737155439601,-1405.79,0.00021917,3]
[349395830,1737155439610,-510.09251729,0.00021917,3]
[349395831,1737155439619,-500.0,0.00021917,3]
[349395833,1737155439629,-1357.62,0.00021917,3]
[349395835,1737155439639,-500.0,0.00021917,3]
[349395836,1737155439649,-503.19520352,0.00021917,3]
[349395838,1737155439658,-500.0,0.00021917,3]
[349395840,1737155439669,-500.0,0.00021917,3]
[349395841,1737155439679,-500.0,0.00021917,3]
[349395843,1737155439689,-500.0,0.00021917,3]
[349395844,1737155439698,-500.0,0.00021917,3]
[349395846,1737155439708,-500.0,0.00021917,3]
[349395848,1737155439717,-170.78768085,0.00021917,3]
[349395849,1737155439727,-500.0,0.00021917,3]
[349395851,1737155439737,-500.0,0.00021917,3]
[349395852,1737155439747,-500.0,0.00021917,3]
[349395854,1737155439756,-500.0,0.00021917,3]
[349395856,1737155439766,-500.0,0.00021917,3]
[349395857,1737155439775,-640.14,0.00021917,3]
[349395859,1737155439785,-500.0,0.00021917,3]
[349395861,1737155439794,-500.0,0.00021917,3]
[349395862,1737155439804,-500.0,0.00021917,3]
[349395864,1737155439814,-500.0,0.00021917,3]
[349395866,1737155439823,-500.0,0.00021917,3]
[349395867,1737155439832,-500.0,0.00021917,3]
[349395869,1737155439842,-500.0,0.00021917,3]
[349395871,1737155439851,-500.0,0.00021917,3]
[349395872,1737155439861,-500.0,0.00021917,3]
[349395874,1737155439870,-500.0,0.00021917,3]
[349395875,1737155439879,-500.0,0.00021917,3]
[349395877,1737155439888,-500.0,0.00021917,3]
[349395879,1737155439898,-500.0,0.00021917,3]
[349395880,1737155439908,-501.72085058,0.00021917,3]
[349395882,1737155439918,-356.67732934,0.00021917,3]
[349395884,1737155439930,-500.0,0.00021917,3]
[349395886,1737155439939,-500.0,0.00021917,3]
[349395887,1737155439949,-500.0,0.00021917,3]
[349395889,1737155439959,-500.0,0.00021917,3]
[349395890,1737155439968,-514.91982311,0.00021917,3]
[349395892,1737155439977,-522.88089945,0.00021917,3]
[349395894,1737155439987,-500.61550216,0.00021917,3]
[349395895,1737155439996,-500.0,0.00021917,3]
[349395897,1737155440005,-500.0,0.00021917,3]
[349395899,1737155440015,-500.0,0.00021917,3]
[349395900,1737155440024,-500.0,0.00021917,3]
[349395902,1737155440034,-500.0,0.00021917,3]
[349395903,1737155440043,-500.0,0.00021917,3]
[349395904,1737155440052,-500.0,0.00021917,3]
[349395905,1737155440061,-500.0,0.00021917,3]
[349395906,1737155440071,-503.88523968,0.00021917,3]
[349395907,1737155440081,-500.0,0.00021917,3]
[349395908,1737155440090,-500.0,0.00021917,3]
[349395909,1737155440100,-500.0,0.00021917,3]
[349395910,1737155440110,-549.19365797,0.00021917,3]
[349395911,1737155440119,-508.41865624,0.00021917,3]
[349395912,1737155440128,-512.6944992,0.00021917,3]
[349395913,1737155440138,-500.0,0.00021917,3]
[349395914,1737155440148,-500.0,0.00021917,3]
[349395915,1737155440158,-500.0,0.00021917,3]
[349395916,1737155440169,-500.0,0.00021917,3]
[349395917,1737155440180,-505.96190816,0.00021917,3]
[349395932,1737155440321,-500.0,0.00021917,3]
[349395934,1737155440330,-504.97231072,0.00021917,3]
[349395936,1737155440339,-500.0,0.00021917,3]
[349395938,1737155440349,-500.0,0.00021917,3]
[349395940,1737155440358,-500.0,0.00021917,3]
[349395942,1737155440368,-500.0,0.00021917,3]
[349395944,1737155440377,-500.0,0.00021917,3]
[349395946,1737155440386,-555.12,0.00021917,3]
[349395948,1737155440396,-500.0,0.00021917,3]
[349395950,1737155440406,-1145.13,0.00021917,3]
[349395952,1737155440417,-500.0,0.00021917,3]
[349395954,1737155440428,-623.78,0.00021917,3]
[349395956,1737155440437,-531.3994437,0.00021917,3]
[349395958,1737155440447,-500.0,0.00021917,3]
[349395960,1737155440458,-500.0,0.00021917,3]
[349395962,1737155440468,-500.0,0.00021917,3]
[349395964,1737155440478,-500.0,0.00021917,3]
[349395966,1737155440488,-500.0,0.00021917,3]
[349395968,1737155440497,-500.0,0.00021917,3]
[349395970,1737155440507,-500.0,0.00021917,3]
[349395972,1737155440517,-500.0,0.00021917,3]
[349395974,1737155440526,-10721.39,0.00021917,3]
[349395976,1737155440536,-500.0,0.00021917,3]
[349395978,1737155440545,-500.0,0.00021917,3]
[349395980,1737155440555,-538.35,0.00021917,3]
[349395982,1737155440564,-2694.92,0.00021917,3]
[349395984,1737155440574,-506.68374984,0.00021917,3]
[349395986,1737155440584,-502.74336708,0.00021917,3]
[349395988,1737155440594,-500.0,0.00021917,3]
[349395990,1737155440603,-500.0,0.00021917,3]
[349395992,1737155440613,-500.0,0.00021917,3]
[349395994,1737155440622,-502.89330797,0.00021917,3]
[349395996,1737155440632,-500.0,0.00021917,3]
[349395998,1737155440641,-500.0,0.00021917,3]
[349396000,1737155440651,-577.06,0.00021917,3]
[349396002,1737155440661,-1000.0,0.00021917,7]
[349396004,1737155440670,-503.44030572,0.00021917,3]
[349396006,1737155440679,-500.0,0.00021917,3]
[349396008,1737155440688,-500.0,0.00021917,3]
[349396010,1737155440698,-500.0,0.00021917,3]
[349396012,1737155440707,-500.0,0.00021917,3]
[349396014,1737155440716,-500.0,0.00021917,3]
[349396016,1737155440725,-504.34253355,0.00021917,3]
[349396018,1737155440734,-606.84,0.00021917,3]
[349396020,1737155440743,-552.07228922,0.00021917,3]
[349396022,1737155440752,-260.58505994,0.00021917,3]
[349396024,1737155440761,-500.0,0.00021917,3]
[349396026,1737155440770,-500.0,0.00021917,3]
[349396028,1737155440779,-500.0,0.00021917,3]
[349396030,1737155440790,-394.1548276,0.00021917,3]
[349396036,1737155440842,-105.8451724,0.00021917,3]
[349396038,1737155440852,-500.0,0.00021917,3]
[349396040,1737155440861,-500.0,0.00021917,3]
[349396042,1737155440871,-500.0,0.00021917,3]